[Event "Titled Tuesday Blitz December 20 Late 2022"]
[White "Ankerst, Mihael"]
[Black "gshwbedhkhd"]
[WhiteFideId "14602369"]
[WhiteElo "2358"]
[BlackElo "2574"]
[Result "1/2-1/2"]
[Round "04"]
[TimeControl "180+1"]
[Date "2022.12.21"]
[WhiteClock "0:00:22"]
[BlackClock "0:00:03"]

1. e4 {[%clk 0:03:00]}  c5 {[%clk 0:02:58]} 2. Nf3 {[%clk 0:03:00]}  e6 {[%clk 0:02:58]} 3. d4 {[%clk 0:03:00]}  cxd4 {[%clk 0:02:59]} 4. Nxd4 {[%clk 0:03:01]}  Nf6 {[%clk 0:03:00]} 5. Nc3 {[%clk 0:03:01]}  Nc6 {[%clk 0:03:00]} 6. Nxc6 {[%clk 0:03:00]}  bxc6 {[%clk 0:03:01]} 7. e5 {[%clk 0:03:01]}  Nd5 {[%clk 0:03:02]} 8. Nxd5 {[%clk 0:03:01]}  cxd5 {[%clk 0:03:01]} 9. Bd3 {[%clk 0:03:02]}  d6 {[%clk 0:03:01]} 10. Bf4 {[%clk 0:03:02]}  Rb8 {[%clk 0:02:59]} 11. O-O {[%clk 0:03:01]}  Rxb2 {[%clk 0:02:57]} 12. Qf3 {[%clk 0:02:57]}  Rb6 {[%clk 0:02:45]} 13. Qg3 {[%clk 0:02:52]}  h6 {[%clk 0:02:27]} 14. h4 {[%clk 0:02:51]}  g6 {[%clk 0:01:37]} 15. Rab1 {[%clk 0:02:48]}  Bg7 {[%clk 0:01:28]} 16. exd6 {[%clk 0:02:42]}  O-O {[%clk 0:01:26]} 17. Rfe1 {[%clk 0:02:38]}  Bd7 {[%clk 0:01:07]} 18. Rb3 {[%clk 0:02:26]}  Qb8 {[%clk 0:00:53]} 19. Qe3 {[%clk 0:02:25]}  d4 {[%clk 0:00:33]} 20. Qd2 {[%clk 0:02:17]}  Re8 {[%clk 0:00:25]} 21. Bxh6 {[%clk 0:02:08]}  Qxd6 {[%clk 0:00:24]} 22. h5 {[%clk 0:01:58]}  e5 {[%clk 0:00:20]} 23. hxg6 {[%clk 0:01:54]}  fxg6 {[%clk 0:00:21]} 24. Qg5 {[%clk 0:01:44]}  Qf6 {[%clk 0:00:15]} 25. Qxf6 {[%clk 0:01:36]}  Rxf6 {[%clk 0:00:16]} 26. Bxg7 {[%clk 0:01:32]}  Kxg7 {[%clk 0:00:16]} 27. Rb7 {[%clk 0:01:32]}  Rf7 {[%clk 0:00:12]} 28. Rxa7 {[%clk 0:01:30]}  Bf5 {[%clk 0:00:07]} 29. Rxf7+ {[%clk 0:01:22]}  Kxf7 {[%clk 0:00:08]} 30. Bc4+ {[%clk 0:01:10]}  Kf6 {[%clk 0:00:07]} 31. Bb3 {[%clk 0:01:10]}  Rc8 {[%clk 0:00:07]} 32. Rd1 {[%clk 0:01:10]}  Bxc2 {[%clk 0:00:05]} 33. Rc1 {[%clk 0:01:11]}  d3 {[%clk 0:00:04]} 34. Bxc2 {[%clk 0:01:00]}  Rxc2 {[%clk 0:00:05]} 35. Rd1 {[%clk 0:01:01]}  d2 {[%clk 0:00:05]} 36. Kf1 {[%clk 0:01:01]}  Rxa2 {[%clk 0:00:05]} 37. Ke2 {[%clk 0:01:02]}  Kf5 {[%clk 0:00:05]} 38. Rxd2 {[%clk 0:01:02]}  Ra4 {[%clk 0:00:05]} 39. Rd3 {[%clk 0:01:00]}  g5 {[%clk 0:00:05]} 40. Rf3+ {[%clk 0:00:58]}  Ke4 {[%clk 0:00:04]} 41. Re3+ {[%clk 0:00:59]}  Kf5 {[%clk 0:00:04]} 42. Rc3 {[%clk 0:00:59]}  g4 {[%clk 0:00:03]} 43. Rc2 {[%clk 0:00:55]}  Ke4 {[%clk 0:00:03]} 44. Rb2 {[%clk 0:00:53]}  Kf4 {[%clk 0:00:02]} 45. Rd2 {[%clk 0:00:43]}  g3 {[%clk 0:00:03]} 46. f3 {[%clk 0:00:32]}  Ra3 {[%clk 0:00:03]} 47. Rb2 {[%clk 0:00:31]}  e4 {[%clk 0:00:03]} 48. Rb4 {[%clk 0:00:28]}  Ra2+ {[%clk 0:00:03]} 49. Kf1 {[%clk 0:00:28]}  Rf2+ {[%clk 0:00:03]} 50. Kg1 {[%clk 0:00:28]}  Re2 {[%clk 0:00:04]} 51. Kf1 {[%clk 0:00:24]}  Rf2+ {[%clk 0:00:04]} 52. Kg1 {[%clk 0:00:22]}  Re2 {[%clk 0:00:03]} 53. Kf1 {[%clk 0:00:22]}  Rf2+ {[%clk 0:00:03]} 1/2-1/2


[Site "https://www.chess.com"]

[Event "Titled Tuesday Blitz December 20 Late 2022"]
[White "Araujo, Everson De Moura"]
[Black "Berezin, Viktor"]
[WhiteFideId "22737197"]
[BlackFideId "14107872"]
[WhiteElo "2035"]
[BlackElo "2310"]
[Result "0-1"]
[Round "04"]
[TimeControl "180+1"]
[Date "2022.12.21"]
[WhiteClock "0:00:19"]
[BlackClock "0:01:02"]

1. c4 {[%clk 0:03:00]}  Nf6 {[%clk 0:02:58]} 2. Nc3 {[%clk 0:03:01]}  g6 {[%clk 0:02:57]} 3. g3 {[%clk 0:03:01]}  Bg7 {[%clk 0:02:55]} 4. Bg2 {[%clk 0:03:02]}  O-O {[%clk 0:02:56]} 5. e4 {[%clk 0:03:02]}  d6 {[%clk 0:02:56]} 6. Nge2 {[%clk 0:03:03]}  e5 {[%clk 0:02:56]} 7. O-O {[%clk 0:03:03]}  Nc6 {[%clk 0:02:57]} 8. h3 {[%clk 0:03:02]}  Nd7 {[%clk 0:02:58]} 9. f4 {[%clk 0:03:01]}  Nc5 {[%clk 0:02:56]} 10. d3 {[%clk 0:03:00]}  Nd4 {[%clk 0:02:54]} 11. Rb1 {[%clk 0:02:51]}  a5 {[%clk 0:02:53]} 12. Be3 {[%clk 0:02:47]}  f5 {[%clk 0:02:52]} 13. a3 {[%clk 0:02:27]}  a4 {[%clk 0:02:50]} 14. Bxd4 {[%clk 0:02:08]}  exd4 {[%clk 0:02:48]} 15. Nd5 {[%clk 0:02:08]}  Re8 {[%clk 0:02:27]} 16. Qc2 {[%clk 0:02:02]}  fxe4 {[%clk 0:02:27]} 17. dxe4 {[%clk 0:02:02]}  d3 {[%clk 0:02:27]} 18. Qd1 {[%clk 0:01:53]}  dxe2 {[%clk 0:02:26]} 19. Qxe2 {[%clk 0:01:54]}  Nxe4 {[%clk 0:02:20]} 20. Bxe4 {[%clk 0:01:52]}  Bf5 {[%clk 0:02:20]} 21. Rbe1 {[%clk 0:01:07]}  Rxe4 {[%clk 0:02:17]} 22. Qxe4 {[%clk 0:01:07]}  Bxe4 {[%clk 0:02:17]} 23. Rxe4 {[%clk 0:01:08]}  c6 {[%clk 0:02:07]} 24. Ne7+ {[%clk 0:01:02]}  Kh8 {[%clk 0:02:03]} 25. f5 {[%clk 0:01:02]}  Qb6+ {[%clk 0:02:03]} 26. Kh2 {[%clk 0:01:00]}  Rf8 {[%clk 0:02:02]} 27. Rh4 {[%clk 0:00:44]}  Qxb2+ {[%clk 0:02:01]} 28. Kh1 {[%clk 0:00:42]}  Rf7 {[%clk 0:01:22]} 29. Nxg6+ {[%clk 0:00:42]}  Kg8 {[%clk 0:01:22]} 30. Nf4 {[%clk 0:00:23]}  Rxf5 {[%clk 0:01:18]} 31. Re1 {[%clk 0:00:23]}  Be5 {[%clk 0:01:07]} 32. Rg4+ {[%clk 0:00:22]}  Kf7 {[%clk 0:01:06]} 33. Nh5 {[%clk 0:00:19]}  Rxh5 {[%clk 0:01:02]} 0-1


[Site "https://www.chess.com"]

[Event "Titled Tuesday Blitz December 20 Late 2022"]
[White "Araujo Sanchez, Josue"]
[Black "Dubov, Daniil"]
[WhiteFideId "6416896"]
[BlackFideId "24126055"]
[WhiteElo "2370"]
[BlackElo "2792"]
[Result "0-1"]
[Round "04"]
[TimeControl "180+1"]
[Date "2022.12.20"]
[WhiteClock "0:00:23"]
[BlackClock "0:00:51"]

1. c4 {[%clk 0:02:56]}  g6 {[%clk 0:02:42]} 2. Nc3 {[%clk 0:02:56]}  c5 {[%clk 0:02:39]} 3. g3 {[%clk 0:02:57]}  Bg7 {[%clk 0:02:34]} 4. Bg2 {[%clk 0:02:57]}  Nc6 {[%clk 0:02:32]} 5. Rb1 {[%clk 0:02:58]}  e6 {[%clk 0:02:29]} 6. a3 {[%clk 0:02:58]}  Nge7 {[%clk 0:02:23]} 7. b4 {[%clk 0:02:57]}  d5 {[%clk 0:02:17]} 8. cxd5 {[%clk 0:02:54]}  Nxd5 {[%clk 0:02:16]} 9. Nxd5 {[%clk 0:02:53]}  exd5 {[%clk 0:02:15]} 10. bxc5 {[%clk 0:02:53]}  O-O {[%clk 0:02:15]} 11. Nf3 {[%clk 0:02:54]}  d4 {[%clk 0:02:13]} 12. O-O {[%clk 0:02:53]}  Qe7 {[%clk 0:02:14]} 13. d3 {[%clk 0:02:38]}  Re8 {[%clk 0:02:13]} 14. Bf4 {[%clk 0:02:10]}  Qxc5 {[%clk 0:02:06]} 15. a4 {[%clk 0:02:10]}  Qe7 {[%clk 0:02:02]} 16. Re1 {[%clk 0:02:07]}  h6 {[%clk 0:01:58]} 17. h4 {[%clk 0:02:06]}  Be6 {[%clk 0:01:51]} 18. Qc1 {[%clk 0:01:59]}  Kh7 {[%clk 0:01:50]} 19. Qb2 {[%clk 0:01:59]}  b6 {[%clk 0:01:47]} 20. Nd2 {[%clk 0:01:41]}  Rac8 {[%clk 0:01:47]} 21. Ne4 {[%clk 0:01:41]}  Red8 {[%clk 0:01:47]} 22. Rbc1 {[%clk 0:01:38]}  Ne5 {[%clk 0:01:46]} 23. Rxc8 {[%clk 0:01:26]}  Rxc8 {[%clk 0:01:45]} 24. Qb5 {[%clk 0:01:18]}  Bd7 {[%clk 0:01:41]} 25. Qa6 {[%clk 0:01:16]}  Rc7 {[%clk 0:01:37]} 26. Nd2 {[%clk 0:01:09]}  Qb4 {[%clk 0:01:36]} 27. h5 {[%clk 0:00:48]}  g5 {[%clk 0:01:34]} 28. Bxe5 {[%clk 0:00:45]}  Qxd2 {[%clk 0:01:34]} 29. Bxc7 {[%clk 0:00:35]}  Qxe1+ {[%clk 0:01:31]} 30. Kh2 {[%clk 0:00:35]}  Qxf2 {[%clk 0:01:30]} 31. Qc4 {[%clk 0:00:31]}  Be6 {[%clk 0:01:24]} 32. Qc6 {[%clk 0:00:30]}  Qxe2 {[%clk 0:01:21]} 33. Kh1 {[%clk 0:00:24]}  Qxh5+ {[%clk 0:01:18]} 34. Kg1 {[%clk 0:00:24]}  Qd1+ {[%clk 0:01:16]} 35. Kh2 {[%clk 0:00:24]}  Bf5 {[%clk 0:01:12]} 36. Be4 {[%clk 0:00:24]}  Qe2+ {[%clk 0:01:08]} 37. Kg1 {[%clk 0:00:24]}  Bxe4 {[%clk 0:01:06]} 38. dxe4 {[%clk 0:00:24]}  d3 {[%clk 0:01:04]} 39. Qd5 {[%clk 0:00:25]}  Bd4+ {[%clk 0:00:58]} 40. Kh1 {[%clk 0:00:22]}  Qf1+ {[%clk 0:00:55]} 41. Kh2 {[%clk 0:00:22]}  Bg1+ {[%clk 0:00:52]} 42. Kh1 {[%clk 0:00:23]}  d2 {[%clk 0:00:51]} 0-1


[Site "https://www.chess.com"]

[Event "Titled Tuesday Blitz December 20 Late 2022"]
[White "ArchibaldCerveza29"]
[Black "Yuan, Qingyu"]
[BlackFideId "8609772"]
[WhiteElo "2443"]
[BlackElo "2359"]
[Result "0-1"]
[Round "04"]
[TimeControl "180+1"]
[Date "2022.12.21"]
[WhiteClock "0:00:10"]
[BlackClock "0:00:26"]

1. d4 {[%clk 0:02:52]}  Nf6 {[%clk 0:02:59]} 2. c4 {[%clk 0:02:51]}  e6 {[%clk 0:03:00]} 3. Nc3 {[%clk 0:02:51]}  Bb4 {[%clk 0:03:00]} 4. f3 {[%clk 0:02:51]}  c5 {[%clk 0:03:00]} 5. a3 {[%clk 0:02:51]}  Bxc3+ {[%clk 0:02:55]} 6. bxc3 {[%clk 0:02:52]}  Nc6 {[%clk 0:02:52]} 7. e4 {[%clk 0:02:47]}  d6 {[%clk 0:02:52]} 8. Ne2 {[%clk 0:02:44]}  e5 {[%clk 0:02:46]} 9. Be3 {[%clk 0:02:39]}  b6 {[%clk 0:02:45]} 10. h4 {[%clk 0:02:29]}  h5 {[%clk 0:02:25]} 11. Rb1 {[%clk 0:02:15]}  Na5 {[%clk 0:02:16]} 12. Ng3 {[%clk 0:02:09]}  Ng8 {[%clk 0:02:11]} 13. f4 {[%clk 0:01:54]}  Nf6 {[%clk 0:01:59]} 14. dxc5 {[%clk 0:01:23]}  dxc5 {[%clk 0:01:55]} 15. Qxd8+ {[%clk 0:01:21]}  Kxd8 {[%clk 0:01:55]} 16. fxe5 {[%clk 0:01:22]}  Ng4 {[%clk 0:01:50]} 17. Bf4 {[%clk 0:01:14]}  Nc6 {[%clk 0:01:40]} 18. Nf5 {[%clk 0:01:10]}  g6 {[%clk 0:01:27]} 19. Nd6 {[%clk 0:01:06]}  Ngxe5 {[%clk 0:01:23]} 20. Rd1 {[%clk 0:01:05]}  Ke7 {[%clk 0:01:20]} 21. Be2 {[%clk 0:00:42]}  Be6 {[%clk 0:01:19]} 22. Rf1 {[%clk 0:00:36]}  f6 {[%clk 0:01:08]} 23. Nb5 {[%clk 0:00:26]}  Rac8 {[%clk 0:00:59]} 24. Bxe5 {[%clk 0:00:24]}  fxe5 {[%clk 0:00:48]} 25. Rd2 {[%clk 0:00:18]}  a6 {[%clk 0:00:45]} 26. Nd6 {[%clk 0:00:17]}  Rcd8 {[%clk 0:00:45]} 27. Nb7 {[%clk 0:00:06]}  Rxd2 {[%clk 0:00:46]} 28. Kxd2 {[%clk 0:00:06]}  Rb8 {[%clk 0:00:46]} 29. Nxc5 {[%clk 0:00:04]}  bxc5 {[%clk 0:00:46]} 30. Kc2 {[%clk 0:00:05]}  Na5 {[%clk 0:00:44]} 31. g4 {[%clk 0:00:05]}  hxg4 {[%clk 0:00:43]} 32. Rh1 {[%clk 0:00:03]}  Nxc4 {[%clk 0:00:38]} 33. h5 {[%clk 0:00:04]}  gxh5 {[%clk 0:00:36]} 34. Rxh5 {[%clk 0:00:04]}  Rb2+ {[%clk 0:00:36]} 35. Kd1 {[%clk 0:00:04]}  Ne3+ {[%clk 0:00:35]} 36. Ke1 {[%clk 0:00:04]}  g3 {[%clk 0:00:35]} 37. Rh7+ {[%clk 0:00:04]}  Kf6 {[%clk 0:00:35]} 38. Rh6+ {[%clk 0:00:04]}  Ke7 {[%clk 0:00:33]} 39. Rh7+ {[%clk 0:00:04]}  Kd6 {[%clk 0:00:34]} 40. Rg7 {[%clk 0:00:04]}  g2 {[%clk 0:00:34]} 41. Rg6 {[%clk 0:00:05]}  a5 {[%clk 0:00:31]} 42. a4 {[%clk 0:00:04]}  Rb1+ {[%clk 0:00:30]} 43. Kf2 {[%clk 0:00:04]}  g1=Q+ {[%clk 0:00:29]} 44. Rxg1 {[%clk 0:00:04]}  Rxg1 {[%clk 0:00:30]} 45. Kxg1 {[%clk 0:00:05]}  Bb3 {[%clk 0:00:27]} 46. Bb5 {[%clk 0:00:05]}  Nc4 {[%clk 0:00:27]} 47. Kf2 {[%clk 0:00:06]}  Nb6 {[%clk 0:00:27]} 48. Ke3 {[%clk 0:00:05]}  c4 {[%clk 0:00:27]} 49. Kd2 {[%clk 0:00:05]}  Kc5 {[%clk 0:00:27]} 50. Ba6 {[%clk 0:00:06]}  Bxa4 {[%clk 0:00:27]} 51. Bb7 {[%clk 0:00:07]}  Bc6 {[%clk 0:00:27]} 52. Ba6 {[%clk 0:00:07]}  Bxe4 {[%clk 0:00:27]} 53. Kc1 {[%clk 0:00:07]}  Bc6 {[%clk 0:00:27]} 54. Kb2 {[%clk 0:00:08]}  Nd5 {[%clk 0:00:28]} 55. Ka3 {[%clk 0:00:08]}  Ne3 {[%clk 0:00:28]} 56. Kb2 {[%clk 0:00:08]}  Ba4 {[%clk 0:00:27]} 57. Ka3 {[%clk 0:00:09]}  Bb3 {[%clk 0:00:27]} 58. Kb2 {[%clk 0:00:10]}  Nd1+ {[%clk 0:00:27]} 59. Ka3 {[%clk 0:00:10]}  Nxc3 {[%clk 0:00:28]} 60. Bc8 {[%clk 0:00:10]}  Nd5 {[%clk 0:00:28]} 61. Be6 {[%clk 0:00:11]}  Nb4 {[%clk 0:00:28]} 62. Bf5 {[%clk 0:00:10]}  Kd4 {[%clk 0:00:28]} 63. Be6 {[%clk 0:00:09]}  e4 {[%clk 0:00:28]} 64. Bf5 {[%clk 0:00:09]}  e3 {[%clk 0:00:29]} 65. Bg4 {[%clk 0:00:09]}  Kd3 {[%clk 0:00:28]} 66. Kb2 {[%clk 0:00:10]}  e2 {[%clk 0:00:28]} 67. Bxe2+ {[%clk 0:00:10]}  Kxe2 {[%clk 0:00:29]} 68. Ka3 {[%clk 0:00:11]}  Bc2 {[%clk 0:00:29]} 69. Kb2 {[%clk 0:00:11]}  Kd3 {[%clk 0:00:29]} 70. Ka3 {[%clk 0:00:12]}  Bd1 {[%clk 0:00:29]} 71. Kb2 {[%clk 0:00:12]}  c3+ {[%clk 0:00:29]} 72. Kc1 {[%clk 0:00:09]}  Bb3 {[%clk 0:00:25]} 73. Kb1 {[%clk 0:00:08]}  a4 {[%clk 0:00:26]} 74. Kc1 {[%clk 0:00:09]}  a3 {[%clk 0:00:27]} 75. Kb1 {[%clk 0:00:09]}  a2+ {[%clk 0:00:26]} 76. Ka1 {[%clk 0:00:10]}  Nc2# {[%clk 0:00:26]} 0-1


[Site "https://www.chess.com"]

[Event "Titled Tuesday Blitz December 20 Late 2022"]
[White "Ardila, Oscar Humberto"]
[Black "TheKnightOfBosnia"]
[WhiteFideId "4404742"]
[WhiteElo "1961"]
[BlackElo "2446"]
[Result "1-0"]
[Round "04"]
[TimeControl "180+1"]
[Date "2022.12.21"]
[WhiteClock "0:00:15"]
[BlackClock "0:00:03"]

1. d4 {[%clk 0:03:00]}  Nf6 {[%clk 0:03:00]} 2. c4 {[%clk 0:03:00]}  e6 {[%clk 0:03:00]} 3. Nc3 {[%clk 0:03:00]}  d5 {[%clk 0:03:00]} 4. Nf3 {[%clk 0:02:58]}  Nbd7 {[%clk 0:02:59]} 5. Bg5 {[%clk 0:02:55]}  Be7 {[%clk 0:02:59]} 6. e3 {[%clk 0:02:55]}  O-O {[%clk 0:02:59]} 7. Qc2 {[%clk 0:02:55]}  h6 {[%clk 0:02:58]} 8. Bh4 {[%clk 0:02:54]}  b6 {[%clk 0:02:58]} 9. cxd5 {[%clk 0:02:54]}  exd5 {[%clk 0:02:57]} 10. Bd3 {[%clk 0:02:54]}  Bb7 {[%clk 0:02:57]} 11. O-O {[%clk 0:02:53]}  Ne4 {[%clk 0:02:56]} 12. Bxe7 {[%clk 0:02:49]}  Qxe7 {[%clk 0:02:55]} 13. Bxe4 {[%clk 0:02:49]}  dxe4 {[%clk 0:02:55]} 14. Nd2 {[%clk 0:02:49]}  f5 {[%clk 0:02:55]} 15. Qb3+ {[%clk 0:02:48]}  Kh8 {[%clk 0:02:54]} 16. Nd5 {[%clk 0:02:41]}  Qd6 {[%clk 0:02:53]} 17. Nf4 {[%clk 0:02:38]}  g5 {[%clk 0:02:45]} 18. Nc4 {[%clk 0:02:38]}  Qf6 {[%clk 0:02:43]} 19. Nh5 {[%clk 0:02:37]}  Qg6 {[%clk 0:02:39]} 20. Ng3 {[%clk 0:02:37]}  f4 {[%clk 0:02:35]} 21. Ne2 {[%clk 0:02:37]}  f3 {[%clk 0:02:34]} 22. Ng3 {[%clk 0:02:32]}  h5 {[%clk 0:02:23]} 23. Ne5 {[%clk 0:01:58]}  Nxe5 {[%clk 0:02:21]} 24. dxe5 {[%clk 0:01:58]}  h4 {[%clk 0:02:20]} 25. Nh1 {[%clk 0:01:59]}  fxg2 {[%clk 0:02:19]} 26. Kxg2 {[%clk 0:01:57]}  Qf5 {[%clk 0:02:15]} 27. Qd1 {[%clk 0:01:55]}  Qf3+ {[%clk 0:01:55]} 28. Qxf3 {[%clk 0:01:53]}  exf3+ {[%clk 0:01:56]} 29. Kg1 {[%clk 0:01:47]}  Rad8 {[%clk 0:01:55]} 30. Rac1 {[%clk 0:01:46]}  c5 {[%clk 0:01:54]} 31. b4 {[%clk 0:01:39]}  Ba6 {[%clk 0:01:47]} 32. Rfd1 {[%clk 0:01:38]}  Rxd1+ {[%clk 0:01:29]} 33. Rxd1 {[%clk 0:01:38]}  cxb4 {[%clk 0:01:29]} 34. Rd7 {[%clk 0:01:07]}  Rc8 {[%clk 0:01:26]} 35. h3 {[%clk 0:01:07]}  Bf1 {[%clk 0:01:08]} 36. Kh2 {[%clk 0:00:51]}  Bg2 {[%clk 0:01:07]} 37. e6 {[%clk 0:00:50]}  Rc1 {[%clk 0:00:54]} 38. Ng3 {[%clk 0:00:50]}  hxg3+ {[%clk 0:00:54]} 39. Kxg3 {[%clk 0:00:50]}  Kg8 {[%clk 0:00:47]} 40. Kg4 {[%clk 0:00:47]}  Rc8 {[%clk 0:00:43]} 41. Kxg5 {[%clk 0:00:44]}  Bxh3 {[%clk 0:00:43]} 42. Re7 {[%clk 0:00:44]}  Kf8 {[%clk 0:00:41]} 43. Kf6 {[%clk 0:00:43]}  Rc5 {[%clk 0:00:32]} 44. Rf7+ {[%clk 0:00:38]}  Ke8 {[%clk 0:00:32]} 45. Rh7 {[%clk 0:00:38]}  Rf5+ {[%clk 0:00:14]} 46. Kg6 {[%clk 0:00:38]}  Bg4 {[%clk 0:00:14]} 47. Rh4 {[%clk 0:00:35]}  Re5 {[%clk 0:00:08]} 48. Rxg4 {[%clk 0:00:30]}  Rxe6+ {[%clk 0:00:08]} 49. Kf5 {[%clk 0:00:31]}  Rc6 {[%clk 0:00:07]} 50. Rxb4 {[%clk 0:00:30]}  Rc2 {[%clk 0:00:07]} 51. a4 {[%clk 0:00:19]}  Rxf2 {[%clk 0:00:07]} 52. Ke4 {[%clk 0:00:19]}  Kd7 {[%clk 0:00:05]} 53. Kf4 {[%clk 0:00:18]}  Kc6 {[%clk 0:00:04]} 54. Rd4 {[%clk 0:00:17]}  a6 {[%clk 0:00:03]} 55. Kg3 {[%clk 0:00:16]}  Rf1 {[%clk 0:00:03]} 56. e4 {[%clk 0:00:17]}  b5 {[%clk 0:00:03]} 57. axb5+ {[%clk 0:00:16]}  axb5 {[%clk 0:00:03]} 58. e5 {[%clk 0:00:16]}  Re1 {[%clk 0:00:03]} 59. Rd6+ {[%clk 0:00:16]}  Kc5 {[%clk 0:00:03]} 60. Re6 {[%clk 0:00:15]} 1-0


[Site "https://www.chess.com"]

[Event "Titled Tuesday Blitz December 20 Late 2022"]
[White "Bas Mas, Jose Joaquin"]
[Black "Arbunic Castro, Giovanna"]
[WhiteFideId "22219064"]
[BlackFideId "3400549"]
[WhiteElo "2233"]
[BlackElo "1963"]
[Result "1-0"]
[Round "04"]
[TimeControl "180+1"]
[Date "2022.12.21"]
[WhiteClock "0:00:10"]
[BlackClock "0:00:03"]

1. e4 {[%clk 0:03:00]}  g6 {[%clk 0:02:56]} 2. d4 {[%clk 0:03:00]}  Bg7 {[%clk 0:02:56]} 3. Nc3 {[%clk 0:03:00]}  c5 {[%clk 0:02:55]} 4. dxc5 {[%clk 0:02:54]}  Qa5 {[%clk 0:02:53]} 5. Bd2 {[%clk 0:02:53]}  Qxc5 {[%clk 0:02:51]} 6. Nf3 {[%clk 0:02:53]}  a6 {[%clk 0:02:49]} 7. Bd3 {[%clk 0:02:52]}  d6 {[%clk 0:02:38]} 8. O-O {[%clk 0:02:49]}  Nf6 {[%clk 0:02:35]} 9. h3 {[%clk 0:02:49]}  O-O {[%clk 0:02:34]} 10. Qe2 {[%clk 0:02:49]}  b5 {[%clk 0:02:28]} 11. a4 {[%clk 0:02:31]}  b4 {[%clk 0:02:21]} 12. Na2 {[%clk 0:02:30]}  a5 {[%clk 0:02:19]} 13. c3 {[%clk 0:02:29]}  Nc6 {[%clk 0:02:07]} 14. cxb4 {[%clk 0:02:20]}  Nxb4 {[%clk 0:02:05]} 15. Rac1 {[%clk 0:02:12]}  Qb6 {[%clk 0:01:53]} 16. Nxb4 {[%clk 0:02:06]}  axb4 {[%clk 0:01:51]} 17. b3 {[%clk 0:01:58]}  Bb7 {[%clk 0:01:50]} 18. Rc4 {[%clk 0:01:54]}  d5 {[%clk 0:01:18]} 19. Rxb4 {[%clk 0:01:50]}  Qa7 {[%clk 0:01:15]} 20. Be3 {[%clk 0:01:35]}  Qa5 {[%clk 0:01:09]} 21. Rb5 {[%clk 0:01:31]}  Qc7 {[%clk 0:00:49]} 22. Rc1 {[%clk 0:01:25]}  Qd7 {[%clk 0:00:28]} 23. e5 {[%clk 0:01:04]}  Ne4 {[%clk 0:00:20]} 24. Bd4 {[%clk 0:00:55]}  Ba6 {[%clk 0:00:18]} 25. Rb4 {[%clk 0:00:40]}  Bxd3 {[%clk 0:00:16]} 26. Qxd3 {[%clk 0:00:40]}  Rab8 {[%clk 0:00:16]} 27. Rxb8 {[%clk 0:00:35]}  Rxb8 {[%clk 0:00:15]} 28. Rb1 {[%clk 0:00:23]}  e6 {[%clk 0:00:14]} 29. Qa6 {[%clk 0:00:19]}  Bf8 {[%clk 0:00:12]} 30. a5 {[%clk 0:00:19]}  Bb4 {[%clk 0:00:10]} 31. Bb6 {[%clk 0:00:17]}  Qc6 {[%clk 0:00:07]} 32. Qd3 {[%clk 0:00:14]}  Nc5 {[%clk 0:00:03]} 33. Qd4 {[%clk 0:00:10]} 1-0


[Site "https://www.chess.com"]

[Event "Titled Tuesday Blitz December 20 Late 2022"]
[White "Bellissimo, Joseph F."]
[Black "Bjelobrk, Igor"]
[WhiteFideId "2609843"]
[BlackFideId "4300726"]
[WhiteElo "2103"]
[BlackElo "2335"]
[Result "0-1"]
[Round "04"]
[TimeControl "180+1"]
[Date "2022.12.21"]
[WhiteClock "0:00:12"]
[BlackClock "0:00:37"]

1. e4 {[%clk 0:02:58]}  e5 {[%clk 0:02:59]} 2. Nf3 {[%clk 0:02:58]}  Nc6 {[%clk 0:02:59]} 3. Bc4 {[%clk 0:02:59]}  Bc5 {[%clk 0:02:59]} 4. c3 {[%clk 0:03:00]}  Nf6 {[%clk 0:02:58]} 5. d3 {[%clk 0:03:00]}  d6 {[%clk 0:02:58]} 6. Bb3 {[%clk 0:03:01]}  h6 {[%clk 0:02:53]} 7. h3 {[%clk 0:03:01]}  a5 {[%clk 0:02:47]} 8. Nbd2 {[%clk 0:02:59]}  O-O {[%clk 0:02:39]} 9. O-O {[%clk 0:02:52]}  Be6 {[%clk 0:02:32]} 10. Bc2 {[%clk 0:02:44]}  d5 {[%clk 0:02:17]} 11. Qe2 {[%clk 0:02:42]}  Re8 {[%clk 0:02:08]} 12. Re1 {[%clk 0:02:40]}  d4 {[%clk 0:02:04]} 13. Nf1 {[%clk 0:02:28]}  b5 {[%clk 0:01:57]} 14. Ng3 {[%clk 0:02:19]}  a4 {[%clk 0:01:55]} 15. Nf5 {[%clk 0:02:16]}  Bf8 {[%clk 0:01:53]} 16. N3h4 {[%clk 0:02:14]}  a3 {[%clk 0:01:50]} 17. Qf3 {[%clk 0:01:54]}  axb2 {[%clk 0:01:40]} 18. Bxb2 {[%clk 0:01:55]}  Rxa2 {[%clk 0:01:37]} 19. Rxa2 {[%clk 0:01:54]}  Bxa2 {[%clk 0:01:38]} 20. Ra1 {[%clk 0:01:14]}  Be6 {[%clk 0:01:37]} 21. Ra6 {[%clk 0:01:14]}  dxc3 {[%clk 0:01:37]} 22. Bxc3 {[%clk 0:01:14]}  Nd4 {[%clk 0:01:38]} 23. Bxd4 {[%clk 0:01:12]}  exd4 {[%clk 0:01:38]} 24. Qg3 {[%clk 0:01:09]}  Kh8 {[%clk 0:01:37]} 25. Rc6 {[%clk 0:01:03]}  Qa8 {[%clk 0:01:04]} 26. Rxc7 {[%clk 0:01:01]}  b4 {[%clk 0:00:51]} 27. Nxd4 {[%clk 0:00:35]}  Qa1+ {[%clk 0:00:49]} 28. Kh2 {[%clk 0:00:36]}  Qxd4 {[%clk 0:00:49]} 29. Nf3 {[%clk 0:00:31]}  Qb6 {[%clk 0:00:47]} 30. Ba4 {[%clk 0:00:19]}  Bd6 {[%clk 0:00:44]} 31. e5 {[%clk 0:00:19]}  Bxc7 {[%clk 0:00:43]} 32. Bxe8 {[%clk 0:00:18]}  Nxe8 {[%clk 0:00:44]} 33. d4 {[%clk 0:00:17]}  b3 {[%clk 0:00:43]} 34. Nd2 {[%clk 0:00:16]}  b2 {[%clk 0:00:43]} 35. Qd3 {[%clk 0:00:15]}  Ba2 {[%clk 0:00:40]} 36. Nb1 {[%clk 0:00:15]}  Bxb1 {[%clk 0:00:40]} 37. Qxb1 {[%clk 0:00:16]}  Qxd4 {[%clk 0:00:40]} 38. g3 {[%clk 0:00:13]}  Bxe5 {[%clk 0:00:39]} 39. h4 {[%clk 0:00:13]}  Qxf2+ {[%clk 0:00:39]} 40. Kh1 {[%clk 0:00:14]}  Bxg3 {[%clk 0:00:38]} 41. Qg1 {[%clk 0:00:12]}  Qf3+ {[%clk 0:00:36]} 42. Qg2 {[%clk 0:00:12]}  b1=Q# {[%clk 0:00:37]} 0-1


[Site "https://www.chess.com"]